bitfinex/quotes_SOLUSD_20250815
["timestamp","ask_amount","ask_price","bid_price","bid_amount"]
[1755292743770,4.33294409,184.95,184.9,39.42]
[1755292743969,3.62294409,184.94,184.9,0.69]
[1755292744363,9.08987465,184.95,184.9,0.69]
[1755292744575,3.62294409,184.94,184.89,39.42]
[1755292744770,3.62294409,184.94,184.89,40.11]
[1755292745159,9.03032179,184.94,184.89,40.11]
[1755292745380,35.73987507,184.95,184.89,40.11]
[1755292745591,3.62294409,184.94,184.9,0.69]
[1755292745881,4.27294409,184.94,184.89,39.42]
[1755292746048,4.27294409,184.94,184.89,40.11]
[1755292746448,3.62294409,184.94,184.9,0.69]
[1755292747082,3.68294409,184.94,184.9,0.69]
[1755292747245,3.68294409,184.94,184.89,44.85854048]
[1755292747450,3.68294409,184.94,184.91,0.69]
[1755292747677,26.0,184.93,184.92,0.69]
[1755292747975,0.06,184.94,184.92,0.69]
[1755292748175,0.06,184.94,184.89,44.85854048]
[1755292748373,0.06,184.94,184.9,0.69]
[1755292748965,3.68297419,184.94,184.89,39.45]
[1755292749162,3.68297419,184.94,184.89,40.14]
[1755292749376,3.68297419,184.94,184.89,105.85849843]
[1755292749880,3.62297419,184.93,184.89,105.85849843]
[1755292750180,9.74021624,184.94,184.89,105.85849843]
[1755292750351,3.62297419,184.93,184.89,105.85849843]
[1755292750749,3.62297419,184.93,184.89,105.16849843]
[1755292750957,3.62297419,184.93,184.9,0.69]
[1755292751485,3.62949178,184.92,184.9,0.69]
[1755292751669,3.62949178,184.93,184.9,0.69]
[1755292751871,3.62949178,184.92,184.9,0.69]
[1755292752075,3.62949178,184.93,184.9,0.69]
[1755292752272,3.62949178,184.92,184.89,105.16849843]
[1755292752787,3.63252603,184.93,184.89,105.85849843]
[1755292753083,3.63252603,184.92,184.89,105.85849843]
[1755292753383,3.63354389,184.93,184.9,0.69]
[1755292753566,0.06,184.94,184.91,0.69]
[1755292753885,3.6336005,184.93,184.91,0.69]
[1755292754069,0.06,184.94,184.91,0.69]
[1755292754270,3.63360017,184.93,184.91,0.69]
[1755292754473,3.63353189,184.93,184.91,0.69]
[1755292755184,29.63353189,184.93,184.92,0.69]
[1755292755485,29.63353189,184.93,184.91,65.71849843]
[1755292755785,26.06,184.94,184.91,65.71849843]
[1755292755974,13.7993334,184.93,184.91,65.71849843]
[1755292756284,4.35410302,184.92,184.91,65.71849843]
[1755292756474,4.35410302,184.92,184.89,0.03]
[1755292756475,26.0,184.9,184.89,0.03]
[1755292756673,33.67323474,184.9,184.89,0.03]
[1755292756870,34.39323474,184.9,184.89,0.03]
[1755292758170,39.80156356,184.9,184.89,0.03]
[1755292759174,39.80201977,184.9,184.89,0.03]
[1755292760477,7.67369095,184.9,184.89,0.03]
[1755292760991,3.63410302,184.9,184.89,0.03]
[1755292761164,3.63410302,184.9,184.89,65.74849843]
[1755292761859,35.76243184,184.9,184.89,65.74849843]
[1755292762064,39.8016795,184.9,184.89,65.74849843]
[1755292762667,39.0816795,184.9,184.89,65.74849843]
[1755292762865,33.67335068,184.9,184.89,65.74849843]
[1755292763380,29.63410302,184.9,184.89,65.74849843]
[1755292764388,3.63410302,184.9,184.89,65.74849843]
[1755292765995,83.45122048,184.9,184.89,65.74849843]
[1755292766170,78.96169565,184.9,184.89,0.03]
[1755292766495,33.67336683,184.9,184.89,65.74849843]
[1755292767071,7.67336683,184.9,184.89,65.74849843]
[1755292767271,33.67336683,184.9,184.89,65.74849843]
[1755292767685,33.67366231,184.9,184.89,65.74849843]
[1755292768194,29.63410302,184.9,184.89,65.74849843]
[1755292768575,39.80188782,184.9,184.89,65.74849843]
[1755292771407,39.80261222,184.9,184.89,65.74849843]
[1755292771615,78.90261222,184.9,184.89,65.74849843]
[1755292773514,78.90333064,184.9,184.89,65.74849843]
[1755292773811,83.39285547,184.9,184.89,65.74849843]
[1755292775404,57.39285547,184.9,184.89,65.74849843]
[1755292775711,52.90333064,184.9,184.89,56.61090785]
[1755292776912,52.18333064,184.9,184.89,56.61090785]
[1755292778113,7.67500182,184.9,184.89,57.33090785]
[1755292778421,29.63410302,184.9,184.89,57.33090785]
[1755292778723,29.63410302,184.9,184.89,56.61090785]
[1755292778908,39.0834892,184.9,184.89,56.61090785]
[1755292779109,29.63410302,184.9,184.89,56.61090785]
[1755292779412,35.76576803,184.9,184.89,56.61090785]
[1755292779616,39.80748665,184.9,184.87,0.03]
[1755292779806,47.41915783,184.89,184.87,0.03]
[1755292780008,13.08807172,184.88,184.87,0.03]
[1755292780525,13.80807172,184.88,184.87,0.03]
[1755292781807,26.0,184.86,184.85,0.03]
[1755292782023,87.8053734,184.86,184.85,0.03]
[1755292782199,93.93487248,184.86,184.83,0.03]
[1755292782505,8.39915783,184.85,184.83,0.03]
[1755292782832,3.63743921,184.84,184.83,0.03]
[1755292783010,4.35743921,184.84,184.83,0.03]
[1755292783510,3.63743921,184.84,184.83,0.03]
[1755292784013,29.63743921,184.84,184.83,0.75]
[1755292784209,29.63743921,184.84,184.83,0.03]
[1755292784723,35.0475236,184.84,184.83,0.03]
[1755292785298,39.08729253,184.84,184.83,0.03]
[1755292785531,39.74729253,184.84,184.83,0.03]
[1755292785910,44.29409154,184.84,184.83,0.03]
[1755292786110,59.40030711,184.84,184.81,0.03]
[1755292786335,51.90400715,184.83,184.81,0.03]
[1755292786631,12.22232298,184.82,184.81,0.03]
[1755292786818,12.22232298,184.82,184.72,0.69]
[1755292786819,26.0,184.8,184.72,0.69]
[1755292787135,26.0,184.76,184.72,79.89]
[1755292787335,26.0,184.76,184.73,0.69]
[1755292787503,26.0,184.78,184.73,0.69]
[1755292787703,26.0,184.78,184.77,0.03]
[1755292787920,26.0,184.78,184.77,79.23]
[1755292788357,35.04330782,184.78,184.77,0.03]
[1755292788521,35.70330782,184.78,184.77,0.03]
[1755292789173,63.74594508,184.78,184.77,0.03]
[1755292789332,59.19914607,184.78,184.77,0.03]
[1755292789846,26.0,184.74,184.7,0.2]
[1755292790150,31.41389204,184.71,184.7,0.2]
[1755292790453,70.43389204,184.71,184.7,0.2]
[1755292790630,74.06037039,184.71,184.7,0.2]
[1755292790828,74.72037039,184.71,184.7,0.2]
[1755292791434,26.0,184.71,184.7,0.2]
[1755292792447,26.0,184.71,184.7,0.89]
[1755292793558,26.0,184.71,184.7,79.4]
[1755292794357,26.0,184.71,184.7,80.09]
[1755292794534,26.0,184.71,184.7,79.4]
[1755292794748,26.0,184.71,184.7,80.09]
[1755292795253,26.0,184.72,184.71,79.2]
[1755292795431,26.0,184.72,184.71,79.89]
[1755292797356,26.0,184.73,184.71,79.89]
[1755292797543,5.41149208,184.8,184.72,0.69]
[1755292797755,3.61515783,184.79,184.72,79.89]
[1755292797955,3.61515783,184.81,184.73,0.69]
[1755292798133,3.61515783,184.82,184.74,54.14621557]
[1755292798336,26.0,184.8,184.75,0.69]
[1755292798530,26.0,184.8,184.76,0.69]
[1755292798772,29.61516951,184.79,184.76,79.2]
[1755292799064,3.61516951,184.78,184.76,79.2]
[1755292799743,9.02723409,184.78,184.76,79.2]
[1755292800055,9.68723409,184.78,184.76,79.2]
[1755292800241,9.68723409,184.78,184.7,37.68246011]
[1755292800242,4.27516951,184.77,184.72,39.04]
[1755292800441,4.27516951,184.77,184.72,118.24]
[1755292800637,26.0,184.75,184.72,118.24]
[1755292801365,26.0,184.75,184.72,118.93]
[1755292801730,3.61744087,184.74,184.72,118.93]
[1755292802363,3.61688582,184.74,184.72,118.24]
[1755292802865,4.27688582,184.74,184.72,79.2]
[1755292803372,3.61688582,184.73,184.72,79.2]
[1755292803571,0.66,184.73,184.72,79.2]
[1755292803876,9.69019172,184.73,184.72,79.2]
[1755292804040,6.0733059,184.73,184.72,79.2]
[1755292804363,9.69019172,184.73,184.72,79.2]
[1755292804737,13.70801264,184.73,184.72,79.2]
[1755292804941,26.0,184.71,184.7,0.2]
[1755292805148,68.65688582,184.71,184.7,0.2]
[1755292805344,69.31688582,184.71,184.7,0.2]
[1755292805662,73.33373479,184.71,184.7,0.2]
[1755292805957,78.74762683,184.71,184.7,0.2]
[1755292806942,78.74762683,184.71,184.68,0.2]
[1755292807153,4.27688582,184.7,184.68,79.4]
[1755292807473,8.29137947,184.69,184.67,1e-08]
[1755292807638,46.67137947,184.68,184.66,1e-08]
[1755292807838,13.04644418,184.67,184.66,1e-08]
[1755292808062,13.70644418,184.67,184.66,1e-08]
[1755292808783,13.70644418,184.67,184.58,0.72]
[1755292808784,26.0,184.64,184.58,0.03]
[1755292809081,26.0,184.6,184.58,0.03]
[1755292809863,31.41722625,184.6,184.58,0.03]
[1755292810269,0.66,184.59,184.58,0.03]
[1755292810458,39.7,184.59,184.58,0.03]
[1755292810660,47.32135305,184.59,184.58,0.03]
[1755292812274,52.73876461,184.59,184.58,0.03]
[1755292815489,54.91120161,184.59,184.58,0.03]
[1755292817681,50.899892,184.59,184.58,0.03]
[1755292817912,11.199892,184.59,184.58,0.03]
[1755292818072,48.087455,184.59,184.58,0.03]
[1755292818272,52.75074832,184.59,184.58,0.03]
[1755292818580,48.087455,184.59,184.58,0.03]
[1755292821386,52.08174392,184.59,184.58,0.03]
[1755292824102,52.08136189,184.59,184.58,0.03]
[1755292824608,57.28920653,184.59,184.58,0.03]
[1755292824812,56.61920653,184.59,184.58,0.03]
[1755292825915,57.28920653,184.59,184.58,0.03]
[1755292826290,31.41799859,184.57,184.56,0.03]
[1755292826489,78.10194892,184.57,184.56,0.03]
[1755292826895,83.27072087,184.57,184.56,0.03]
[1755292827100,83.27072087,184.57,184.52,79.23]
[1755292827101,94.31553257,184.57,184.52,79.23]
[1755292827305,26.0,184.53,184.52,79.23]
[1755292827495,33.60395033,184.53,184.52,79.23]
[1755292828225,34.27395033,184.53,184.52,0.03]
[1755292828415,39.02312336,184.53,184.52,0.03]
[1755292830297,33.60395033,184.53,184.52,0.69]
[1755292830496,29.61004344,184.53,184.52,0.69]
[1755292830805,33.61114223,184.53,184.52,0.03]
[1755292831192,39.03031526,184.53,184.52,0.03]
[1755292832115,39.03031526,184.53,184.52,79.23]
[1755292832900,43.52594873,184.53,184.52,79.23]
[1755292833113,44.19594873,184.53,184.52,79.23]
[1755292833427,44.19594873,184.53,184.52,0.03]
[1755292835815,43.52594873,184.53,184.52,0.03]
[1755292836831,44.19594873,184.53,184.52,0.03]
[1755292837613,39.70031526,184.53,184.52,0.03]
[1755292837928,39.6978647,184.53,184.48,0.03]
[1755292838243,26.0,184.49,184.48,0.69]
[1755292838551,3.61004344,184.49,184.48,5.4506418]
[1755292838750,3.59824321,184.52,184.48,5.4506418]
[1755292838909,43.57862215,184.57,184.49,15.76621557]
[1755292839110,7.59609995,184.56,184.5,0.66]
[1755292839314,3.59820897,184.55,184.5,39.74]
[1755292839535,3.5992523,184.54,184.51,0.66]
[1755292839845,39.08,184.59,184.51,0.66]
[1755292840013,7.59835702,184.58,184.51,0.66]
[1755292840210,3.59930997,184.57,184.51,0.66]
[1755292840411,3.59930997,184.56,184.53,5.41917303]
[1755292840610,3.59930997,184.55,184.54,0.66]
[1755292841341,26.0,184.58,184.54,0.66]
[1755292841519,3.60372126,184.57,184.54,0.66]
[1755292841714,3.60372126,184.56,184.54,0.66]
[1755292841913,0.06,184.6,184.54,0.66]
[1755292842135,3.60508362,184.59,184.56,15.10621557]
[1755292842336,0.06,184.6,184.58,15.10621557]
[1755292842534,0.06,184.6,184.59,5.41741156]
[1755292842741,0.06,184.6,184.59,60.24362713]
[1755292843941,3.67301987,184.6,184.59,39.06]
[1755292844132,3.67301987,184.6,184.56,45.13824479]
[1755292844436,3.61301987,184.59,184.57,0.66]
[1755292844643,3.61301987,184.58,184.56,39.06]
[1755292844813,3.61301987,184.57,184.56,39.72]
[1755292846248,3.61301987,184.59,184.56,39.72]
[1755292846443,3.61301987,184.58,184.57,15.80621557]
[1755292846762,0.06,184.6,184.57,15.80621557]
[1755292846763,0.06,184.6,184.58,15.10621557]
[1755292846966,0.06,184.6,184.59,39.06]
[1755292847155,0.06,184.6,184.59,39.76]
[1755292847671,0.06,184.6,184.59,118.96]
[1755292848344,0.06,184.6,184.59,124.37741156]
[1755292848541,0.06,184.62,184.61,15.10621557]
[1755292848849,3.68468227,184.62,184.61,15.10621557]
[1755292849036,3.68468227,184.62,184.61,15.80621557]
[1755292849238,0.06,184.62,184.61,15.80621557]
[1755292849437,3.68783557,184.62,184.61,15.80621557]
[1755292849959,3.68783557,184.62,184.61,54.86621557]
[1755292850557,3.68783557,184.62,184.61,60.28304022]
[1755292850748,3.68783557,184.62,184.61,39.06]
[1755292850952,3.68783557,184.62,184.6,84.55703698]
[1755292850953,3.68783557,184.62,184.6,79.14]
[1755292851153,3.62783557,184.61,184.6,118.2]
[1755292851558,4.34783557,184.61,184.58,79.14]
[1755292851862,12.88218272,184.6,184.53,94.24621557]
[1755292852069,4.34783557,184.59,184.54,39.06]
[1755292852272,3.62783557,184.58,184.54,39.06]
[1755292852588,3.62783557,184.57,184.54,39.06]
[1755292852749,3.62783557,184.56,184.54,39.76]
[1755292852944,3.62783557,184.55,184.54,118.9]
[1755292853653,3.62783557,184.55,184.54,118.2]
[1755292855878,3.62783557,184.55,184.54,118.9]
[1755292856383,3.62783557,184.55,184.54,118.2]
[1755292857478,5.41777731,184.58,184.54,118.2]
[1755292857779,3.62731266,184.57,184.54,118.2]
[1755292857951,3.62731266,184.56,184.54,118.2]
[1755292858152,6.13777731,184.58,184.54,118.2]
[1755292858451,3.62757334,184.57,184.54,118.2]
[1755292858669,3.62757334,184.56,184.54,118.2]
[1755292858866,0.72,184.57,184.54,118.2]
[1755292859069,3.62814369,184.56,184.54,118.2]
[1755292859277,0.72,184.57,184.54,118.2]
[1755292860555,5.41711809,184.6,184.54,118.2]
[1755292860758,3.62875517,184.59,184.54,118.9]
[1755292860976,3.62875517,184.58,184.54,118.2]
[1755292861290,3.62875517,184.57,184.55,0.7]
[1755292861489,3.62866775,184.6,184.56,39.04]
[1755292861792,3.62866775,184.59,184.56,39.74]
[1755292862090,26.78,184.62,184.56,39.74]
[1755292862091,3.62863473,184.61,184.56,39.74]
[1755292862387,3.62863473,184.6,184.56,45.15819664]
[1755292862566,3.62863473,184.61,184.56,45.15819664]
[1755292862768,3.62863473,184.6,184.56,45.15819664]
[1755292862963,3.62863473,184.61,184.56,44.45819664]
[1755292863174,0.06,184.62,184.61,79.14]
[1755292863500,0.06,184.62,184.61,118.88]
[1755292864015,0.06,184.62,184.61,133.98621557]
[1755292864372,0.06,184.63,184.62,20.52274682]
[1755292864571,0.06,184.63,184.62,21.76439994]
[1755292864771,1e-08,184.63,184.62,21.76439994]
[1755292865592,0.06,184.67,184.65,15.10621557]
[1755292865921,0.06,184.67,184.66,54.68775136]
[1755292866082,0.06,184.67,184.66,55.38775136]
[1755292866401,0.06,184.69,184.68,5.41477149]
[1755292866603,0.06,184.69,184.68,44.45477149]
[1755292867105,0.06,184.69,184.68,45.15477149]
[1755292868008,0.06,184.69,184.68,60.26098706]
[1755292868505,0.2,184.76,184.69,15.10621557]
[1755292868682,0.2,184.76,184.71,15.10621557]
[1755292868884,0.2,184.76,184.73,15.10621557]
[1755292869083,0.2,184.76,184.74,39.04]
[1755292869293,0.2,184.76,184.74,118.18]
[1755292869976,0.72,184.75,184.74,118.18]
[1755292870301,0.72,184.75,184.74,79.14]
[1755292873682,6.13271989,184.75,184.74,79.14]
[1755292875477,6.13271989,184.75,184.73,79.14]
[1755292875707,0.71,184.74,184.73,79.14]
[1755292875880,26.0,184.72,184.63,79.14]
[1755292876080,4.31007914,184.71,184.64,39.02]
[1755292876392,26.0,184.68,184.63,39.02]
[1755292876724,9.72417254,184.67,184.62,39.02]
[1755292876880,9.01417254,184.67,184.61,39.02]
[1755292877217,3.59910783,184.67,184.62,15.79621557]
[1755292877405,26.0,184.69,184.64,15.10621557]
[1755292877588,26.0,184.69,184.65,39.02]
[1755292877779,26.0,184.69,184.65,39.71]
[1755292878204,5.41395645,184.71,184.65,39.71]
[1755292878414,9.72511864,184.71,184.65,39.71]
[1755292878693,26.0,184.69,184.65,45.12563202]
[1755292878991,0.71,184.73,184.66,0.69]
[1755292879191,26.0,184.72,184.66,0.69]
[1755292879490,0.71,184.73,184.67,39.02]
[1755292879698,3.60280215,184.74,184.67,39.71]
[1755292880415,3.60280215,184.73,184.67,39.71]
[1755292880589,3.60280215,184.74,184.68,5.41477149]
[1755292883517,3.60280215,184.73,184.7,5.41418516]
[1755292883688,0.71,184.74,184.7,5.41418516]
[1755292884182,3.60854453,184.75,184.72,5.41359896]
[1755292884390,0.2,184.76,184.75,79.14]
[1755292884914,0.2,184.76,184.75,118.85]
[1755292886397,0.2,184.76,184.75,124.26271989]
[1755292890316,0.06,184.79,184.78,15.10621557]
[1755292890525,0.06,184.79,184.78,54.10621557]
[1755292890710,0.06,184.79,184.78,54.79621557]
[1755292891917,0.06,184.79,184.78,60.20805667]
[1755292892708,0.06,184.79,184.78,15.10621557]
[1755292892913,0.06,184.79,184.78,54.10621557]
[1755292893614,0.77,184.79,184.78,39.0]
[1755292893823,0.77,184.79,184.78,117.94]
[1755292894605,4.37566569,184.79,184.78,117.94]
[1755292894826,0.77,184.79,184.78,117.94]
[1755292897715,0.06,184.81,184.8,78.88]
[1755292897914,0.06,184.81,184.8,133.65621557]
[1755292899326,0.06,184.81,184.8,139.06747098]
[1755292900320,0.06,184.83,184.81,15.10621557]
[1755292900499,0.06,184.83,184.82,54.62728255]
[1755292900905,0.06,184.83,184.82,55.31728255]
[1755292901231,1e-08,184.84,184.83,41.10621557]
[1755292901529,1e-08,184.84,184.83,47.20659267]
[1755292902509,1e-08,184.84,184.83,47.74763038]
[1755292902709,1e-08,184.84,184.83,86.72763038]
[1755292904532,0.06,184.86,184.85,93.92621556]
[1755292904719,0.06,184.86,184.85,133.44719473]
[1755292905035,0.06,184.86,184.85,133.59621556]
[1755292905219,0.06,184.86,184.85,135.76370856]
[1755292906423,0.06,184.86,184.85,135.07370856]
[1755292906626,0.06,184.86,184.85,138.31600728]
[1755292906839,0.77,184.86,184.85,138.31600728]
[1755292907137,0.06,184.86,184.85,138.31600728]
[1755292907433,0.06,184.86,184.85,132.90621556]
[1755292908832,0.06,184.86,184.85,138.99600728]
[1755292910056,0.06,184.9,184.89,78.69999999]
[1755292910264,3.66737291,184.9,184.89,38.96]
[1755292910432,0.06,184.9,184.89,132.76621556]
[1755292911158,0.06,184.9,184.89,138.1748369]
[1755292911372,0.06,184.9,184.89,138.8548369]
[1755292911950,0.06,184.9,184.89,138.1748369]
[1755292913281,1e-08,184.9,184.89,60.15483691]
[1755292913487,1e-08,184.9,184.89,86.69569904]
[1755292916546,0.06,184.92,184.91,15.10621557]
[1755292916750,0.06,184.92,184.91,54.5870192]
[1755292916950,0.06,184.92,184.91,60.67505554]
[1755292917767,0.06,184.92,184.91,62.16184354]
[1755292918990,0.06,184.93,184.92,15.10621557]
[1755292920058,0.06,184.93,184.92,54.04621557]
[1755292920699,1e-08,184.95,184.94,26.0]
[1755292921010,1e-08,184.97,184.95,15.10621557]
[1755292921218,0.06,185.01,184.98,41.10621557]
[1755292921500,0.06,185.01,184.98,158.74621555]
[1755292921806,0.06,185.01,184.99,15.10621557]
[1755292921972,0.06,185.01,185.0,54.04621557]
[1755292922178,1e-08,185.01,185.0,54.72621557]
[1755292922594,0.71,185.08,185.01,15.10621557]
[1755292922785,0.71,185.08,185.03,15.10621557]
[1755292922981,0.71,185.08,185.02,39.48048211]
[1755292922982,0.71,185.08,185.05,15.10621557]
[1755292923185,0.2,185.09,185.07,15.10621557]
[1755292923502,0.2,185.09,185.08,54.04621557]
[1755292924079,0.2,185.09,185.08,57.63897257]
[1755292925000,8.62505731,185.2,185.08,57.63897257]
[1755292925001,0.71,185.15,185.12,15.10621557]
[1755292925198,3.58602467,185.16,185.13,38.92]
[1755292925398,0.71,185.14,185.13,54.02621557]
[1755292926810,4.29602467,185.18,185.14,15.10621557]
[1755292926982,4.29602467,185.21,185.16,15.10621557]
[1755292927189,3.58602467,185.24,185.18,15.10621557]
[1755292927535,4.29602467,185.23,185.2,15.10621557]
[1755292927682,4.29602467,185.22,185.21,54.02621557]
[1755292928008,0.71,185.22,185.21,38.92]
[1755292928216,4.28630512,185.25,185.22,15.10621557]
[1755292928509,4.28630512,185.24,185.23,38.92]
[1755292928717,0.71,185.24,185.23,38.92]
[1755292930314,4.27874584,185.24,185.23,54.02621557]
[1755292930690,0.71,185.24,185.23,54.02621557]
[1755292931087,0.71,185.24,185.19,26.0]
[1755292931400,3.56874584,185.25,185.2,70.77335337]
[1755292931401,0.06,185.25,185.2,70.77335337]
[1755292931792,0.06,185.25,185.22,15.10621557]
[1755292932000,0.77,185.25,185.24,15.10621557]
[1755292932203,0.06,185.25,185.24,15.10621557]
[1755292932790,0.06,185.25,185.24,20.50461764]
[1755292933095,0.77,185.25,185.24,15.10621557]
[1755292934616,0.06,185.25,185.24,15.10621557]
[1755292936837,0.06,185.25,185.24,21.21461764]
[1755292937337,0.06,185.27,185.26,41.10621557]
[1755292937496,0.06,185.27,185.26,80.52599749]
[1755292937702,0.06,185.27,185.26,81.23599749]
[1755292938516,0.06,185.27,185.26,42.35599749]
[1755292938717,0.06,185.27,185.26,15.10621557]
[1755292938918,0.06,185.27,185.26,53.98621557]
[1755292939597,0.06,185.27,185.26,15.10621557]
[1755292939795,0.74,185.27,185.26,15.10621557]
[1755292940009,0.74,185.27,185.26,53.98621557]
[1755292940228,0.74,185.27,185.26,38.88]
[1755292941132,0.06,185.27,185.26,38.88]
[1755292941435,0.06,185.27,185.26,59.38403485]
[1755292941638,0.06,185.27,185.26,60.09403485]
[1755292942336,0.06,185.27,185.26,59.38403485]
[1755292942838,0.06,185.27,185.26,60.63381677]
[1755292944324,0.06,185.27,185.26,86.63381677]
[1755292944536,0.06,185.31,185.27,15.10621557]
[1755292944847,0.06,185.31,185.29,15.10621557]
[1755292945052,0.06,185.31,185.3,59.36286964]
[1755292945451,0.06,185.31,185.3,60.07286964]
[1755292945661,1e-08,185.31,185.3,86.07286964]
[1755292945822,1e-08,185.31,185.3,86.61253504]
[1755292947842,1e-08,185.31,185.3,85.90253504]
[1755292948228,1e-08,185.31,185.3,59.36286964]
[1755292948947,0.68000001,185.31,185.3,59.36286964]
[1755292949122,0.68000001,185.31,185.3,53.96621557]
[1755292950136,0.68000001,185.31,185.3,38.86]
[1755292950328,6.07636286,185.31,185.24,0.03]
[1755292950527,0.68,185.3,185.26,15.10621557]
[1755292950833,0.68,185.3,185.27,38.86]
[1755292951557,1e-08,185.31,185.28,15.64593923]
[1755292951734,1e-08,185.31,185.3,15.10621557]
[1755292951940,1e-08,185.31,185.3,15.64588097]
[1755292952253,1e-08,185.31,185.3,16.35588097]
[1755292952755,1e-08,185.31,185.3,15.64588097]
[1755292953251,1e-08,185.31,185.3,21.04253504]
[1755292954831,4.23130363,185.39,185.33,15.10621557]
[1755292955032,0.68,185.39,185.35,15.10621557]
[1755292955232,10.00185462,185.44,185.38,15.10621557]
[1755292955533,4.50920707,185.42,185.38,38.86]
[1755292955761,4.23920851,185.41,185.38,38.86]
[1755292955930,4.50920707,185.42,185.38,38.86]
[1755292955931,3.55920851,185.4,185.38,38.86]
[1755292956127,3.55920851,185.39,185.38,53.96621557]
[1755292956343,0.68,185.41,185.39,15.10621557]
[1755292956526,0.1,185.44,185.4,38.84]
[1755292956721,3.56030871,185.43,185.4,38.84]
[1755292957028,3.56030871,185.42,185.4,38.84]
[1755292957226,4.24030871,185.41,185.4,38.84]
[1755292959153,14.14296812,185.41,185.33,15.10621557]
[1755292959470,14.09557105,185.4,185.35,15.10621557]
[1755292959658,4.24030871,185.39,185.36,38.84]
[1755292959972,8.70173056,185.38,185.36,38.84]
[1755292960148,8.02173056,185.37,185.36,38.84]
[1755292960474,26.0,185.36,185.26,16.217531]
[1755292960771,4.46742936,185.32,185.27,38.84]
[1755292960973,8.70773807,185.31,185.27,38.84]
[1755292961168,8.70773807,185.3,185.27,38.84]
[1755292961369,4.24030871,185.29,185.27,38.84]
[1755292961575,3.56030871,185.28,185.27,53.94621557]
[1755292961754,4.24030871,185.28,185.27,38.84]
[1755292961953,3.56030871,185.28,185.27,59.3437435]
[1755292962263,3.56030871,185.28,185.27,60.0537435]
[1755292962573,3.56030871,185.28,185.27,59.3437435]
[1755292963377,3.56030871,185.28,185.27,53.94621557]
[1755292963550,4.24030871,185.28,185.27,38.86]
[1755292963754,9.63754532,185.28,185.24,0.03]
[1755292963951,4.48702838,185.26,185.24,38.95]
[1755292964178,8.72733709,185.25,185.24,38.95]
[1755292964481,8.04733709,185.25,185.24,38.95]
[1755292964851,3.56030871,185.25,185.24,60.16461764]
[1755292965053,4.48702838,185.31,185.25,15.10621557]
[1755292965275,3.59530165,185.3,185.26,38.92]
[1755292965449,3.59530165,185.29,185.28,15.10621557]
[1755292965651,3.59530165,185.29,185.28,54.02621557]
[1755292966570,3.59530165,185.29,185.28,59.42345218]
[1755292966766,10.08196705,185.29,185.28,54.02621557]
[1755292967070,14.76705605,185.29,185.28,38.92]
[1755292967575,14.24866002,185.29,185.25,15.13621557]
[1755292967766,8.28088777,185.28,185.26,38.92]
[1755292967958,8.28088777,185.27,185.25,0.03]
[1755292968268,12.11334507,185.26,185.25,0.03]
[1755292968574,8.28574075,185.26,185.25,0.03]
[1755292968959,12.7978975,185.26,185.25,0.03]
[1755292969164,12.8016955,185.26,185.25,0.03]
[1755292970073,12.8060016,185.26,185.25,0.03]
[1755292970278,12.8061546,185.26,185.25,0.03]
[1755292970660,12.80891225,185.26,185.25,0.03]
[1755292970965,12.12884421,185.26,185.25,15.13621557]
[1755292971177,3.59530165,185.26,185.25,15.13621557]
[1755292971377,8.1119175,185.26,185.25,15.13621557]
[1755292971572,12.13224075,185.26,185.25,0.03]
[1755292971782,12.81224075,185.26,185.25,0.03]
[1755292972083,8.1119175,185.26,185.25,0.03]
[1755292972251,3.59530165,185.26,185.25,0.03]